[Event "4NCL Div 1 2018-19"]
[Site "Daventry"]
[Date "2019.01.13"]
[Round "4"]
[White "Kett, Tim"]
[Black "Oswald, Graeme E"]
[Result "1/2-1/2"]
[ECO "A43"]
[WhiteElo "2209"]
[BlackElo "2143"]
[Annotator "NA"]
[PlyCount "92"]
[EventDate "2019.01.12"]
[EventCountry "GBR"]
[SourceTitle "playchess.com"]
[Source "ChessBase"]
[SourceQuality "1"]
[TimeControl "40"]

1. d4 {[%emt 0:00:00]} Nf6 {[%emt 0:00:00]} 2. Nf3 {[%emt 0:00:00]} c5 {[%emt 0:00:00]} 3. d5 {[%emt 0:00:00]} d6 {[%emt 0:00:00]} 4. Nc3 {[%emt 0:00:00]} g6 {[%emt 0:00:00]} 5. e4 {[%emt 0:00:00]} Bg7 {[%emt 0:00:00]} 6. Be2 {[%emt 0:00:00]} O-O {[%emt 0:00:00]} 7. O-O {[%emt 0:00:00]} e6 {[%emt 0:00:00]} 8. h3 {[%emt 0:00:00]} exd5 {[%emt 0:00:00]} 9. exd5 {[%emt 0:00:00]} a6 {[%emt 0:00:00]} 10. a4 {[%emt 0:00:00]} b6 {[%emt 0:00:00]} 11. Bf4 {[%emt 0:00:00]} Bb7 {[%emt 0:00:00]} 12. Qd2 {[%emt 0:00:00]} Re8 {[%emt 0:00:00]} 13. Rfe1 {[%emt 0:00:00]} Qc7 {[%emt 0:00:00]} 14. Rad1 {[%emt 0:00:00]} Nbd7 {[%emt 0:00:00]} 15. Bf1 {[%emt 0:00:00]} Rac8 {[%emt 0:00:00]} 16. g4 {[%emt 0:00:00]} Rxe1 {[%emt 0:00:00]} 17. Rxe1 {[%emt 0:00:00]} Re8 {[%emt 0:00:00]} 18. Rxe8+ {[%emt 0:00:00]} Nxe8 {[%emt 0:00:00]} 19. Bg2 {[%emt 0:00:00]} Qd8 {[%emt 0:00:00]} 20. Bg5 {[%emt 0:00:00]} Ndf6 {[%emt 0:00:00]} 21. Qe3 {[%emt 0:00:00]} Qd7 {[%emt 0:00:00]} 22. Nd2 {[%emt 0:00:00]} b5 {[%emt 0:00:00]} 23. axb5 {[%emt 0:00:00]} axb5 {[%emt 0:00:00]} 24. Qd3 {[%emt 0:00:00]} c4 {[%emt 0:00:00]} 25. Qe2 {[%emt 0:00:00]} h6 {[%emt 0:00:00]} 26. Bf4 {[%emt 0:00:00]} b4 {[%emt 0:00:00]} 27. Nce4 {[%emt 0:00:00]} Nxd5 {[%emt 0:00:00]} 28. Bg3 {[%emt 0:00:00]} c3 {[%emt 0:00:00]} 29. bxc3 {[%emt 0:00:00]} Nxc3 {[%emt 0:00:00]} 30. Qd3 {[%emt 0:00:00]} d5 {[%emt 0:00:00]} 31. Nc5 {[%emt 0:00:00]} Qc6 {[%emt 0:00:00]} 32. Nxb7 {[%emt 0:00:00]} Qxb7 {[%emt 0:00:00]} 33. Nf1 {[%emt 0:00:00]} Qd7 {[%emt 0:00:00]} 34. Ne3 {[%emt 0:00:00]} d4 {[%emt 0:00:00]} 35. Nc4 {[%emt 0:00:00]} Qe6 {[%emt 0:00:00]} 36. Bf3 {[%emt 0:00:00]} f5 {[%emt 0:00:00]} 37. Na5 {[%emt 0:00:00]} Ne4 {[%emt 0:00:00]} 38. Qb5 {[%emt 0:00:00]} Kh7 {[%emt 0:00:00]} 39. Qc6 {[%emt 0:00:03]} Qe7 {[%emt 0:00:00]} 40. gxf5 {[%emt 0:00:00]} gxf5 {[%emt 0:00:00]} 41. Nc4 {[%emt 0:00:00]} d3 {[%emt 0:00:00]} 42. cxd3 {[%emt 0:00:00]} Nxg3 {[%emt 0:00:00]} 43. fxg3 {[%emt 0:00:00]} Bd4+ {[%emt 0:00:00]} 44. Kg2 {[%emt 0:00:00]} Ng7 {[%emt 0:00:00]} 45. Qd5 {[%emt 0:00:00]} Qa7 {[%emt 0:00:00]} 46. Nd6 {[%emt 0:00:00]} Bg1 {[%emt 0:00:00]} 1/2-1/2

[Event "4NCL Div 1 2018-19"]
[Site "Daventry"]
[Date "2019.01.13"]
[Round "4"]
[White "Blackburn, Jonathan L B"]
[Black "Coathup, Roger H"]
[Result "0-1"]
[ECO "A65"]
[WhiteElo "2208"]
[BlackElo "2139"]
[Annotator "NA"]
[PlyCount "174"]
[EventDate "2019.01.12"]
[EventCountry "GBR"]
[SourceTitle "playchess.com"]
[Source "ChessBase"]
[SourceQuality "1"]
[TimeControl "40"]

1. d4 {[%emt 0:00:00]} Nf6 {[%emt 0:00:00]} 2. c4 {[%emt 0:00:00]} g6 {[%emt 0:00:00]} 3. Nc3 {[%emt 0:00:00]} Bg7 {[%emt 0:00:00]} 4. e4 {[%emt 0:00:00]} d6 {[%emt 0:00:00]} 5. Nge2 {[%emt 0:00:00]} O-O {[%emt 0:00:00]} 6. Ng3 {[%emt 0:00:00]} c5 {[%emt 0:00:00]} 7. d5 {[%emt 0:00:00]} e6 {[%emt 0:00:00]} 8. Be2 {[%emt 0:00:00]} exd5 {[%emt 0:00:00]} 9. cxd5 {[%emt 0:00:00]} a6 {[%emt 0:00:00]} 10. a4 {[%emt 0:00:00]} h5 {[%emt 0:00:00]} 11. Bg5 {[%emt 0:00:00]} Qa5 {[%emt 0:00:00]} 12. O-O {[%emt 0:00:00]} Re8 {[%emt 0:00:00]} 13. Qc2 {[%emt 0:00:00]} Nbd7 {[%emt 0:00:00]} 14. h3 {[%emt 0:00:00]} Nf8 {[%emt 0:00:00]} 15. Rfe1 {[%emt 0:00:00]} N8h7 {[%emt 0:00:00]} 16. Bf4 {[%emt 0:00:00]} Qd8 {[%emt 0:00:00]} 17. Nf1 {[%emt 0:00:00]} g5 {[%emt 0:00:00]} 18. Bh2 {[%emt 0:00:00]} g4 {[%emt 0:00:00]} 19. h4 {[%emt 0:00:00]} Nd7 {[%emt 0:00:00]} 20. Bxd6 {[%emt 0:00:00]} Qxh4 {[%emt 0:00:00]} 21. g3 {[%emt 0:00:00]} Qf6 {[%emt 0:00:00]} 22. e5 {[%emt 0:00:00]} Nxe5 {[%emt 0:00:00]} 23. Ne4 {[%emt 0:00:00]} Qg6 {[%emt 0:00:00]} 24. Bxe5 {[%emt 0:00:00]} Rxe5 {[%emt 0:00:00]} 25. Bd3 {[%emt 0:00:00]} Bf5 {[%emt 0:00:00]} 26. Nxc5 {[%emt 0:00:00]} Bxd3 {[%emt 0:00:00]} 27. Qxd3 {[%emt 0:00:00]} Qxd3 {[%emt 0:00:00]} 28. Nxd3 {[%emt 0:00:00]} Rxd5 {[%emt 0:00:00]} 29. Nf4 {[%emt 0:00:00]} Rc5 {[%emt 0:00:00]} 30. Rac1 {[%emt 0:00:00]} Rxc1 {[%emt 0:00:00]} 31. Rxc1 {[%emt 0:00:00]} Bh6 {[%emt 0:00:00]} 32. Rc7 {[%emt 0:00:00]} Bxf4 {[%emt 0:00:00]} 33. gxf4 {[%emt 0:00:00]} Rb8 {[%emt 0:00:00]} 34. Ng3 {[%emt 0:00:00]} Nf6 {[%emt 0:00:00]} 35. Rc5 {[%emt 0:00:00]} Rd8 {[%emt 0:00:00]} 36. Rf5 {[%emt 0:00:00]} Kg7 {[%emt 0:00:00]} 37. Rg5+ {[%emt 0:00:00]} Kf8 {[%emt 0:00:00]} 38. Rf5 {[%emt 0:00:00]} Rd6 {[%emt 0:00:00]} 39. b4 {[%emt 0:00:00]} h4 {[%emt 0:00:00]} 40. Nf1 {[%emt 0:00:00]} Ne4 {[%emt 0:00:00]} 41. Ne3 {[%emt 0:00:00]} g3 {[%emt 0:00:00]} 42. fxg3 {[%emt 0:00:00]} Nxg3 {[%emt 0:00:00]} 43. Rc5 {[%emt 0:00:00]} Rd2 {[%emt 0:00:00]} 44. Nf5 {[%emt 0:00:00]} Nxf5 {[%emt 0:00:00]} 45. Rxf5 {[%emt 0:00:00]} Rd4 {[%emt 0:00:00]} 46. b5 {[%emt 0:00:00]} Rxa4 {[%emt 0:00:00]} 47. bxa6 {[%emt 0:00:00]} bxa6 {[%emt 0:00:00]} 48. Kg2 {[%emt 0:00:00]} Ra3 {[%emt 0:00:00]} 49. Rh5 {[%emt 0:00:00]} h3+ {[%emt 0:00:00]} 50. Kh2 {[%emt 0:00:00]} Kg7 {[%emt 0:00:00]} 51. Rg5+ {[%emt 0:00:00]} Kf6 {[%emt 0:00:00]} 52. Rc5 {[%emt 0:00:00]} a5 {[%emt 0:00:00]} 53. Rb5 {[%emt 0:00:00]} Ke7 {[%emt 0:00:00]} 54. Re5+ {[%emt 0:00:00]} Kf8 {[%emt 0:00:00]} 55. Rf5 {[%emt 0:00:00]} a4 {[%emt 0:00:00]} 56. Ra5 {[%emt 0:00:00]} f6 {[%emt 0:00:00]} 57. Ra7 {[%emt 0:00:00]} Kg8 {[%emt 0:00:00]} 58. f5 {[%emt 0:00:00]} Kf8 {[%emt 0:00:00]} 59. Ra8+ {[%emt 0:00:00]} Kf7 {[%emt 0:00:00]} 60. Ra7+ {[%emt 0:00:00]} Kg8 {[%emt 0:00:00]} 61. Ra5 {[%emt 0:00:00]} Kh7 {[%emt 0:00:00]} 62. Ra8 {[%emt 0:00:00]} Kg7 {[%emt 0:00:00]} 63. Ra6 {[%emt 0:00:00]} Kf7 {[%emt 0:00:00]} 64. Ra7+ {[%emt 0:00:00]} Ke8 {[%emt 0:00:00]} 65. Ra6 {[%emt 0:00:00]} Ke7 {[%emt 0:00:00]} 66. Re6+ {[%emt 0:00:00]} Kf7 {[%emt 0:00:00]} 67. Re4 {[%emt 0:00:00]} Kg7 {[%emt 0:00:00]} 68. Rg4+ {[%emt 0:00:00]} Kh6 {[%emt 0:00:00]} 69. Rg6+ {[%emt 0:00:00]} Kh5 {[%emt 0:00:00]} 70. Rxf6 {[%emt 0:00:00]} Kg4 {[%emt 0:00:00]} 71. Rg6+ {[%emt 0:00:00]} Kxf5 {[%emt 0:00:00]} 72. Ra6 {[%emt 0:00:00]} Ke4 {[%emt 0:00:00]} 73. Ra8 {[%emt 0:00:00]} Kd5 {[%emt 0:00:00]} 74. Ra7 {[%emt 0:00:00]} Kc5 {[%emt 0:00:00]} 75. Ra8 {[%emt 0:00:00]} Ra1 {[%emt 0:00:00]} 76. Kxh3 {[%emt 0:00:00]} Kb4 {[%emt 0:00:00]} 77. Kg2 {[%emt 0:00:00]} Kb3 {[%emt 0:00:00]} 78. Kf2 {[%emt 0:00:00]} a3 {[%emt 0:00:00]} 79. Rb8+ {[%emt 0:00:00]} Ka2 {[%emt 0:00:00]} 80. Ra8 {[%emt 0:00:00]} Rb1 {[%emt 0:00:00]} 81. Ke3 {[%emt 0:00:00]} Kb2 {[%emt 0:00:00]} 82. Rb8+ {[%emt 0:00:00]} Ka1 {[%emt 0:00:00]} 83. Ra8 {[%emt 0:00:00]} a2 {[%emt 0:00:00]} 84. Kd2 {[%emt 0:00:00]} Kb2 {[%emt 0:00:00]} 85. Rb8+ {[%emt 0:00:00]} Ka3 {[%emt 0:00:00]} 86. Ra8+ {[%emt 0:00:00]} Kb3 {[%emt 0:00:00]} 87. Rb8+ {[%emt 0:00:00]} Kc4 {[%emt 0:00:00]} 0-1

[Event "4NCL Div 1 2018-19"]
[Site "Daventry"]
[Date "2019.01.13"]
[Round "4"]
[White "Oyama, Akito"]
[Black "Cooper, John G"]
[Result "1/2-1/2"]
[ECO "B23"]
[WhiteElo "2198"]
[BlackElo "2274"]
[Annotator "NA"]
[PlyCount "44"]
[EventDate "2019.01.12"]
[EventCountry "GBR"]
[SourceTitle "playchess.com"]
[Source "ChessBase"]
[SourceQuality "1"]
[TimeControl "40"]

1. e4 {[%emt 0:00:00]} c5 {[%emt 0:00:00]} 2. Nc3 {[%emt 0:00:00]} e6 {[%emt 0:00:00]} 3. f4 {[%emt 0:00:00]} Nc6 {[%emt 0:00:00]} 4. Nf3 {[%emt 0:00:00]} Nge7 {[%emt 0:00:00]} 5. Bb5 {[%emt 0:00:00]} Nd4 {[%emt 0:00:00]} 6. O-O {[%emt 0:00:00]} a6 {[%emt 0:00:00]} 7. Bd3 {[%emt 0:00:00]} Nec6 {[%emt 0:00:00]} 8. Nxd4 {[%emt 0:00:00]} cxd4 {[%emt 0:00:00]} 9. Ne2 {[%emt 0:00:00]} Bc5 {[%emt 0:00:00]} 10. a3 {[%emt 0:00:00]} b5 {[%emt 0:00:00]} 11. b4 {[%emt 0:00:00]} Bb6 {[%emt 0:00:00]} 12. Kh1 {[%emt 0:00:00]} Bb7 {[%emt 0:00:00]} 13. Bb2 {[%emt 0:00:00]} d6 {[%emt 0:00:00]} 14. c3 {[%emt 0:00:00]} dxc3 {[%emt 0:00:00]} 15. dxc3 {[%emt 0:00:00]} O-O {[%emt 0:00:00]} 16. Ng3 {[%emt 0:00:00]} Qh4 {[%emt 0:00:00]} 17. c4 {[%emt 0:00:00]} Bd4 {[%emt 0:00:00]} 18. Qd2 {[%emt 0:00:00]} Qf6 {[%emt 0:00:00]} 19. Nh5 {[%emt 0:00:00]} Qh6 {[%emt 0:00:00]} 20. Ng3 {[%emt 0:00:00]} Qf6 {[%emt 0:00:00]} 21. Nh5 {[%emt 0:00:00]} Qh6 {[%emt 0:00:00]} 22. Ng3 {[%emt 0:00:00]} Qf6 {[%emt 0:01:05]} 1/2-1/2

[Event "4NCL Div 1 2018-19"]
[Site "Daventry"]
[Date "2019.01.13"]
[Round "4"]
[White "Nelson, Jonathan P"]
[Black "Connell, Blair N"]
[Result "1/2-1/2"]
[ECO "D16"]
[WhiteElo "2189"]
[BlackElo "2240"]
[Annotator "NA"]
[PlyCount "29"]
[EventDate "2019.01.12"]
[EventCountry "GBR"]
[SourceTitle "playchess.com"]
[Source "ChessBase"]
[SourceQuality "1"]
[TimeControl "40"]

1. d4 {[%emt 0:00:00]} d5 {[%emt 0:00:00]} 2. Nf3 {[%emt 0:00:00]} Nf6 {[%emt 0:00:00]} 3. c4 {[%emt 0:00:00]} c6 {[%emt 0:00:00]} 4. Nc3 {[%emt 0:00:00]} dxc4 {[%emt 0:00:00]} 5. a4 {[%emt 0:00:00]} e6 {[%emt 0:00:00]} 6. e3 {[%emt 0:00:00]} c5 {[%emt 0:00:00]} 7. Bxc4 {[%emt 0:00:00]} Nc6 {[%emt 0:00:00]} 8. O-O {[%emt 0:00:00]} cxd4 {[%emt 0:00:00]} 9. exd4 {[%emt 0:00:00]} Be7 {[%emt 0:00:00]} 10. Bf4 {[%emt 0:00:00]} O-O {[%emt 0:00:00]} 11. Rc1 {[%emt 0:00:00]} Nb4 {[%emt 0:00:00]} 12. Qb3 {[%emt 0:00:00]} Nc6 {[%emt 0:00:00]} 13. Qd1 {[%emt 0:00:00]} Nb4 {[%emt 0:00:00]} 14. Qb3 {[%emt 0:00:00]} Nc6 {[%emt 0:00:00]} 15. Qd1 {[%emt 0:00:00]} 1/2-1/2

[Event "4NCL Div 1 2018-19"]
[Site "Daventry"]
[Date "2019.01.13"]
[Round "4"]
[White "Stork, Oliver"]
[Black "Berry, Neil"]
[Result "1/2-1/2"]
[ECO "A13"]
[WhiteElo "2187"]
[BlackElo "2258"]
[Annotator "NA"]
[PlyCount "75"]
[EventDate "2019.01.12"]
[EventCountry "GBR"]
[SourceTitle "playchess.com"]
[Source "ChessBase"]
[SourceQuality "1"]
[TimeControl "40"]

1. c4 {[%emt 0:00:00]} e6 {[%emt 0:00:00]} 2. Nf3 {[%emt 0:00:00]} d5 {[%emt 0:00:00]} 3. b3 {[%emt 0:00:00]} Nf6 {[%emt 0:00:00]} 4. g3 {[%emt 0:00:00]} d4 {[%emt 0:00:00]} 5. e3 {[%emt 0:00:00]} Nc6 {[%emt 0:00:00]} 6. exd4 {[%emt 0:00:00]} Nxd4 {[%emt 0:00:00]} 7. Bg2 {[%emt 0:00:00]} Bc5 {[%emt 0:00:00]} 8. O-O {[%emt 0:00:00]} O-O {[%emt 0:00:00]} 9. Bb2 {[%emt 0:00:00]} e5 {[%emt 0:00:00]} 10. Nxd4 {[%emt 0:00:00]} Bxd4 {[%emt 0:00:00]} 11. Bxd4 {[%emt 0:00:00]} Qxd4 {[%emt 0:00:00]} 12. Nc3 {[%emt 0:00:00]} c6 {[%emt 0:00:00]} 13. Re1 {[%emt 0:00:00]} Bf5 {[%emt 0:00:00]} 14. Qf3 {[%emt 0:00:00]} Bd3 {[%emt 0:00:00]} 15. Qe3 {[%emt 0:00:00]} Rfe8 {[%emt 0:00:00]} 16. Na4 {[%emt 0:00:00]} Bf5 {[%emt 0:00:00]} 17. Nc5 {[%emt 0:00:00]} b6 {[%emt 0:00:00]} 18. Na6 {[%emt 0:00:00]} Qd7 {[%emt 0:00:00]} 19. a4 {[%emt 0:00:00]} Rad8 {[%emt 0:00:00]} 20. a5 {[%emt 0:00:00]} c5 {[%emt 0:00:00]} 21. b4 {[%emt 0:00:00]} Qxd2 {[%emt 0:00:00]} 22. axb6 {[%emt 0:00:00]} Qxe3 {[%emt 0:00:00]} 23. Rxe3 {[%emt 0:00:00]} axb6 {[%emt 0:00:00]} 24. bxc5 {[%emt 0:00:00]} bxc5 {[%emt 0:00:00]} 25. Nxc5 {[%emt 0:00:00]} Rc8 {[%emt 0:00:00]} 26. Nb7 {[%emt 0:00:00]} Re6 {[%emt 0:00:00]} 27. Bd5 {[%emt 0:00:00]} Nxd5 {[%emt 0:00:00]} 28. cxd5 {[%emt 0:00:00]} Rb6 {[%emt 0:00:00]} 29. Rxe5 {[%emt 0:00:00]} Rxb7 {[%emt 0:00:00]} 30. Rxf5 {[%emt 0:00:00]} Rd7 {[%emt 0:00:00]} 31. Rd1 {[%emt 0:00:00]} Rcd8 {[%emt 0:00:00]} 32. Kg2 {[%emt 0:00:00]} g6 {[%emt 0:00:00]} 33. Re5 {[%emt 0:00:00]} f6 {[%emt 0:00:00]} 34. Re6 {[%emt 0:00:00]} Kf7 {[%emt 0:00:00]} 35. Ra6 {[%emt 0:00:00]} Rxd5 {[%emt 0:00:00]} 36. Ra7+ {[%emt 0:00:00]} Kg8 {[%emt 0:00:00]} 37. Rc1 {[%emt 0:00:00]} R5d7 {[%emt 0:00:00]} 38. Rxd7 {[%emt 0:00:07]} 1/2-1/2

[Event "4NCL Div 1 2018-19"]
[Site "Daventry"]
[Date "2019.01.13"]
[Round "4"]
[White "Hansen, Hans-Peter"]
[Black "Olson, Hamish"]
[Result "0-1"]
[ECO "A13"]
[WhiteElo "2173"]
[BlackElo "2282"]
[Annotator "NA"]
[PlyCount "80"]
[EventDate "2019.01.12"]
[EventCountry "GBR"]
[SourceTitle "playchess.com"]
[Source "ChessBase"]
[SourceQuality "1"]
[TimeControl "40"]

1. c4 {[%emt 0:00:00]} e6 {[%emt 0:00:00]} 2. Nf3 {[%emt 0:00:00]} d5 {[%emt 0:00:00]} 3. g3 {[%emt 0:00:00]} Nd7 {[%emt 0:00:00]} 4. b3 {[%emt 0:00:00]} a5 {[%emt 0:00:00]} 5. Bb2 {[%emt 0:00:00]} a4 {[%emt 0:00:00]} 6. Na3 {[%emt 0:00:00]} Ngf6 {[%emt 0:00:00]} 7. Bg2 {[%emt 0:00:00]} c6 {[%emt 0:00:00]} 8. O-O {[%emt 0:00:00]} Bd6 {[%emt 0:00:00]} 9. d4 {[%emt 0:00:00]} O-O {[%emt 0:00:00]} 10. Nc2 {[%emt 0:00:00]} b6 {[%emt 0:00:00]} 11. cxd5 {[%emt 0:00:00]} exd5 {[%emt 0:00:00]} 12. bxa4 {[%emt 0:00:00]} Rxa4 {[%emt 0:00:00]} 13. a3 {[%emt 0:00:00]} Bb7 {[%emt 0:00:00]} 14. Nb4 {[%emt 0:00:00]} Ra5 {[%emt 0:00:00]} 15. Qc2 {[%emt 0:00:00]} c5 {[%emt 0:00:00]} 16. Nd3 {[%emt 0:00:00]} Qe7 {[%emt 0:00:00]} 17. Rfc1 {[%emt 0:00:00]} c4 {[%emt 0:00:00]} 18. Nb4 {[%emt 0:00:00]} Rfa8 {[%emt 0:00:00]} 19. Rab1 {[%emt 0:00:00]} Ra4 {[%emt 0:00:00]} 20. e3 {[%emt 0:00:00]} b5 {[%emt 0:00:00]} 21. Nd2 {[%emt 0:00:00]} Rxa3 {[%emt 0:00:00]} 22. Bxa3 {[%emt 0:00:00]} Rxa3 {[%emt 0:00:00]} 23. Qb2 {[%emt 0:00:00]} Rxe3 {[%emt 0:00:00]} 24. Nf1 {[%emt 0:00:00]} Rb3 {[%emt 0:00:00]} 25. Qa2 {[%emt 0:00:00]} Rxb1 {[%emt 0:00:00]} 26. Rxb1 {[%emt 0:00:00]} Bxb4 {[%emt 0:00:00]} 27. Ne3 {[%emt 0:00:00]} g6 {[%emt 0:00:00]} 28. Qa7 {[%emt 0:00:00]} Nf8 {[%emt 0:00:00]} 29. Rxb4 {[%emt 0:00:00]} Qxb4 {[%emt 0:00:00]} 30. Qxb7 {[%emt 0:00:00]} Qb1+ {[%emt 0:00:00]} 31. Bf1 {[%emt 0:00:00]} b4 {[%emt 0:00:00]} 32. Qe7 {[%emt 0:00:00]} N8d7 {[%emt 0:00:00]} 33. Nxd5 {[%emt 0:00:00]} Nxd5 {[%emt 0:00:00]} 34. Qxd7 {[%emt 0:00:00]} Nf6 {[%emt 0:00:00]} 35. Qc8+ {[%emt 0:00:00]} Kg7 {[%emt 0:00:00]} 36. Qxc4 {[%emt 0:00:00]} b3 {[%emt 0:00:00]} 37. Kg2 {[%emt 0:00:00]} Qe4+ {[%emt 0:00:00]} 38. f3 {[%emt 0:00:00]} Qc2+ {[%emt 0:00:00]} 39. Kg1 {[%emt 0:00:00]} Qxc4 {[%emt 0:00:00]} 40. Bxc4 {[%emt 0:00:00]} b2 {[%emt 0:00:00]} 0-1

[Event "4NCL Div 1 2018-19"]
[Site "Daventry"]
[Date "2019.01.13"]
[Round "4"]
[White "Shafi, Declan"]
[Black "Mihov, Filip"]
[Result "0-1"]
[ECO "D21"]
[WhiteElo "2125"]
[BlackElo "2146"]
[Annotator "NA"]
[PlyCount "112"]
[EventDate "2019.01.12"]
[EventCountry "GBR"]
[SourceTitle "playchess.com"]
[Source "ChessBase"]
[SourceQuality "1"]
[TimeControl "40"]

1. d4 {[%emt 0:00:00]} d5 {[%emt 0:00:00]} 2. c4 {[%emt 0:00:00]} dxc4 {[%emt 0:00:00]} 3. Nf3 {[%emt 0:00:00]} c5 {[%emt 0:00:00]} 4. e3 {[%emt 0:00:00]} cxd4 {[%emt 0:00:00]} 5. exd4 {[%emt 0:00:00]} Be6 {[%emt 0:00:00]} 6. Nc3 {[%emt 0:00:00]} Nf6 {[%emt 0:00:00]} 7. Ng5 {[%emt 0:00:00]} Bd5 {[%emt 0:00:00]} 8. Qa4+ {[%emt 0:00:00]} Nc6 {[%emt 0:00:00]} 9. Nxd5 {[%emt 0:00:00]} Nxd5 {[%emt 0:00:00]} 10. Bxc4 {[%emt 0:00:00]} e6 {[%emt 0:00:00]} 11. Bb5 {[%emt 0:00:00]} Bb4+ {[%emt 0:00:00]} 12. Kf1 {[%emt 0:00:00]} Rc8 {[%emt 0:00:00]} 13. a3 {[%emt 0:00:00]} Be7 {[%emt 0:00:00]} 14. Nf3 {[%emt 0:00:00]} O-O {[%emt 0:00:00]} 15. Be3 {[%emt 0:00:00]} a6 {[%emt 0:00:00]} 16. Be2 {[%emt 0:00:00]} Bf6 {[%emt 0:00:00]} 17. Rd1 {[%emt 0:00:00]} Qb6 {[%emt 0:00:00]} 18. Bc1 {[%emt 0:00:00]} Nxd4 {[%emt 0:00:00]} 19. Nxd4 {[%emt 0:00:00]} Bxd4 {[%emt 0:00:00]} 20. Qxd4 {[%emt 0:00:00]} Qxd4 {[%emt 0:00:00]} 21. Rxd4 {[%emt 0:00:00]} Rxc1+ {[%emt 0:00:00]} 22. Bd1 {[%emt 0:00:00]} Rb1 {[%emt 0:00:00]} 23. Rd2 {[%emt 0:00:00]} Rc8 {[%emt 0:00:00]} 24. Ke2 {[%emt 0:00:00]} Kf8 {[%emt 0:00:00]} 25. Re1 {[%emt 0:00:00]} Rcc1 {[%emt 0:00:00]} 26. g3 {[%emt 0:00:00]} Ke7 {[%emt 0:00:00]} 27. f4 {[%emt 0:00:00]} g6 {[%emt 0:00:00]} 28. Rf1 {[%emt 0:00:00]} h5 {[%emt 0:00:00]} 29. Rf3 {[%emt 0:00:00]} b5 {[%emt 0:00:00]} 30. Rfd3 {[%emt 0:00:00]} Nb6 {[%emt 0:00:00]} 31. Bb3 {[%emt 0:00:00]} Rc6 {[%emt 0:00:00]} 32. Rd4 {[%emt 0:00:00]} Rbc1 {[%emt 0:00:00]} 33. Kf3 {[%emt 0:00:00]} Rc7 {[%emt 0:00:00]} 34. h3 {[%emt 0:00:00]} Rd7 {[%emt 0:00:00]} 35. Rxd7+ {[%emt 0:00:00]} Nxd7 {[%emt 0:00:00]} 36. Bc2 {[%emt 0:00:00]} Nb6 {[%emt 0:00:00]} 37. Be4 {[%emt 0:00:00]} Nc4 {[%emt 0:00:00]} 38. Rg2 {[%emt 0:00:00]} Kd6 {[%emt 0:00:00]} 39. Bb7 {[%emt 0:00:00]} a5 {[%emt 0:00:00]} 40. Be4 {[%emt 0:00:00]} Rd1 {[%emt 0:00:00]} 41. Rc2 {[%emt 0:00:00]} Rd2 {[%emt 0:00:00]} 42. g4 {[%emt 0:00:00]} hxg4+ {[%emt 0:00:00]} 43. hxg4 {[%emt 0:00:00]} Rxc2 {[%emt 0:00:00]} 44. Bxc2 {[%emt 0:00:00]} Nxb2 {[%emt 0:00:00]} 45. Ke4 {[%emt 0:00:00]} a4 {[%emt 0:00:00]} 46. Kd4 {[%emt 0:00:00]} Nc4 {[%emt 0:00:00]} 47. Bxa4 {[%emt 0:00:00]} bxa4 {[%emt 0:00:00]} 48. Kxc4 {[%emt 0:00:00]} e5 {[%emt 0:00:00]} 49. f5 {[%emt 0:00:00]} gxf5 {[%emt 0:00:00]} 50. gxf5 {[%emt 0:00:00]} f6 {[%emt 0:00:00]} 51. Kb4 {[%emt 0:00:00]} Kd5 {[%emt 0:00:00]} 52. Kxa4 {[%emt 0:00:00]} Kc4 {[%emt 0:00:00]} 53. Ka5 {[%emt 0:00:00]} e4 {[%emt 0:00:00]} 54. Kb6 {[%emt 0:00:00]} e3 {[%emt 0:00:00]} 55. Ka5 {[%emt 0:00:00]} e2 {[%emt 0:00:00]} 56. Ka4 {[%emt 0:00:00]} Kd5 {[%emt 0:00:42]} 0-1

[Event "4NCL Div 1 2018-19"]
[Site "Daventry"]
[Date "2019.01.13"]
[Round "4"]
[White "Dargan, Paul A G"]
[Black "Mihalik, Agoston"]
[Result "1/2-1/2"]
[ECO "B22"]
[WhiteElo "2123"]
[BlackElo "2206"]
[Annotator "NA"]
[PlyCount "98"]
[EventDate "2019.01.12"]
[EventCountry "GBR"]
[SourceTitle "playchess.com"]
[Source "ChessBase"]
[SourceQuality "1"]
[TimeControl "40"]

1. e4 {[%emt 0:00:00]} c5 {[%emt 0:00:00]} 2. c3 {[%emt 0:00:00]} Nf6 {[%emt 0:00:00]} 3. e5 {[%emt 0:00:00]} Nd5 {[%emt 0:00:00]} 4. d4 {[%emt 0:00:00]} cxd4 {[%emt 0:00:00]} 5. Nf3 {[%emt 0:00:00]} Nc6 {[%emt 0:00:00]} 6. cxd4 {[%emt 0:00:00]} d6 {[%emt 0:00:00]} 7. Bc4 {[%emt 0:00:00]} dxe5 {[%emt 0:00:00]} 8. dxe5 {[%emt 0:00:00]} Ndb4 {[%emt 0:00:00]} 9. Qxd8+ {[%emt 0:00:00]} Nxd8 {[%emt 0:00:00]} 10. Na3 {[%emt 0:00:00]} Bg4 {[%emt 0:00:00]} 11. O-O {[%emt 0:00:00]} Nbc6 {[%emt 0:00:00]} 12. Bf4 {[%emt 0:00:00]} Bxf3 {[%emt 0:00:00]} 13. gxf3 {[%emt 0:00:00]} g5 {[%emt 0:00:00]} 14. Bg3 {[%emt 0:00:00]} Bg7 {[%emt 0:00:00]} 15. Rfe1 {[%emt 0:00:00]} Ne6 {[%emt 0:00:00]} 16. Bxe6 {[%emt 0:00:00]} fxe6 {[%emt 0:00:00]} 17. f4 {[%emt 0:00:00]} gxf4 {[%emt 0:00:00]} 18. Bxf4 {[%emt 0:00:00]} Rd8 {[%emt 0:00:00]} 19. Bg3 {[%emt 0:00:00]} h5 {[%emt 0:00:00]} 20. Re4 {[%emt 0:00:00]} Rd4 {[%emt 0:00:00]} 21. Rae1 {[%emt 0:00:00]} h4 {[%emt 0:00:00]} 22. Bf4 {[%emt 0:00:00]} Rf8 {[%emt 0:00:00]} 23. Nc2 {[%emt 0:00:00]} Rd5 {[%emt 0:00:00]} 24. Nb4 {[%emt 0:00:00]} Nxb4 {[%emt 0:00:00]} 25. Rxb4 {[%emt 0:00:00]} Rf5 {[%emt 0:00:00]} 26. Be3 {[%emt 0:00:00]} Bxe5 {[%emt 0:00:00]} 27. Rxb7 {[%emt 0:00:00]} a5 {[%emt 0:00:00]} 28. b4 {[%emt 0:00:00]} Bc3 {[%emt 0:00:00]} 29. Rc1 {[%emt 0:00:00]} axb4 {[%emt 0:00:00]} 30. h3 {[%emt 0:00:00]} Ra5 {[%emt 0:00:00]} 31. Rc2 {[%emt 0:00:00]} Kf7 {[%emt 0:00:00]} 32. Rc7 {[%emt 0:00:00]} Rfd5 {[%emt 0:00:00]} 33. Rc4 {[%emt 0:00:00]} Rd1+ {[%emt 0:00:00]} 34. Kg2 {[%emt 0:00:00]} Ra1 {[%emt 0:00:00]} 35. Bc5 {[%emt 0:00:00]} Rb1 {[%emt 0:00:00]} 36. Bd4 {[%emt 0:00:00]} Rg5+ {[%emt 0:00:00]} 37. Kf3 {[%emt 0:00:00]} Rf5+ {[%emt 0:00:00]} 38. Kg2 {[%emt 0:00:00]} Rg5+ {[%emt 0:00:00]} 39. Kf3 {[%emt 0:00:00]} Rh1 {[%emt 0:00:00]} 40. Bxc3 {[%emt 0:00:00]} Rxh3+ {[%emt 0:00:00]} 41. Ke2 {[%emt 0:00:00]} bxc3 {[%emt 0:00:00]} 42. R2xc3 {[%emt 0:00:00]} Rxc3 {[%emt 0:00:00]} 43. Rxc3 {[%emt 0:00:00]} Ra5 {[%emt 0:00:00]} 44. a3 {[%emt 0:00:00]} Kg6 {[%emt 0:00:00]} 45. Kf3 {[%emt 0:00:00]} Rg5 {[%emt 0:00:00]} 46. Rc8 {[%emt 0:00:00]} Kg7 {[%emt 0:00:00]} 47. Rc4 {[%emt 0:00:00]} Rh5 {[%emt 0:00:00]} 48. Kg4 {[%emt 0:00:00]} Kg6 {[%emt 0:00:00]} 49. Rc6 {[%emt 0:00:00]} h3 {[%emt 0:00:00]} 1/2-1/2